bitfinex/quotes_ETHUSD_20241207
["timestamp","ask_amount","ask_price","bid_price","bid_amount"]
[1733531672895,11.4406,4022.4,4021.8,3.2]
[1733531673099,11.4406,4022.4,4021.7,2.3116481]
[1733531673100,0.7906,4022.3,4021.7,2.3116481]
[1733531673503,0.7906,4022.3,4021.4,0.2]
[1733531673701,0.7906,4022.3,4021.5,0.2481]
[1733531675301,0.7906,4022.3,4021.9,0.2481]
[1733531676507,0.7906,4022.3,4021.8,0.02485859]
[1733531676881,0.7906,4022.3,4021.5,0.27295861]
[1733531680013,0.7906,4022.3,4021.7,0.2481]
[1733531681202,0.7906,4022.3,4022.1,0.2481]
[1733531681802,10.65,4022.4,4022.1,0.2481]
[1733531683424,10.65,4022.4,4022.1,2.5597481]
[1733531683737,10.65,4022.4,4022.3,0.2481]
[1733531684256,10.65,4022.4,4022.3,0.7981]
[1733531686073,11.4406,4022.4,4022.3,0.2481]
[1733531686352,11.4406,4022.4,4022.2,0.2481]
[1733531689055,11.43450078,4022.4,4022.3,0.2481]
[1733531689456,11.43450078,4022.4,4021.5,0.2481]
[1733531689667,0.8041,4022.3,4021.5,0.2481]
[1733531690020,0.8041,4022.3,4021.6,0.2481]
[1733531691034,0.8041,4022.3,4021.1,0.26695254]
[1733531691035,0.8041,4022.3,4021.2,0.2481]
[1733531691962,0.8041,4022.2,4021.2,0.2481]
[1733531692141,0.8041,4022.2,4020.7,0.2481]
[1733531693247,0.8041,4022.2,4020.4,0.2481]
[1733531693485,2.3116481,4022.1,4020.4,0.2481]
[1733531693769,0.8223,4022.0,4020.1,0.53991767]
[1733531694056,0.8223,4021.9,4020.1,0.26695254]
[1733531694268,0.8223,4021.9,4020.2,0.33319806]
[1733531694625,0.8223,4021.9,4020.1,0.29181811]
[1733531694827,0.8223,4021.9,4020.1,0.62501617]
[1733531695456,0.8223,4021.9,4020.1,0.62501751]
[1733531695643,0.8223,4021.7,4020.2,0.33319806]
[1733531696048,0.8223,4021.7,4020.1,0.29181945]
[1733531696350,0.8223,4021.7,4020.1,0.02486691]
[1733531696661,0.8223,4021.7,4019.8,0.55]
[1733531696866,0.8223,4021.7,4019.8,0.88319806]
[1733531697068,0.99007819,4021.7,4019.8,0.33319806]
[1733531697311,0.99007819,4021.7,4019.9,0.02486843]
[1733531697645,0.99007819,4021.7,4020.0,0.33319806]
[1733531697876,0.99007819,4021.7,4020.1,0.02486819]
[1733531698975,0.8223,4021.6,4020.0,0.33319806]
[1733531699171,2.47942629,4021.7,4020.0,0.33319806]
[1733531699172,0.8223,4021.4,4020.0,0.33319806]
[1733531699893,0.8223,4021.4,4020.0,0.3580663]
[1733531700050,0.8223,4021.4,4020.0,0.35806631]
[1733531700386,0.8223,4021.4,4020.1,3.3630628]
[1733531700588,0.8223,4021.4,4020.2,0.33319806]
[1733531701543,0.8223,4021.4,4019.6,3.26695254]
[1733531701744,0.8223,4021.3,4019.6,0.6001506]
[1733531702269,0.8223,4021.2,4019.5,0.02486853]
[1733531702458,0.8223,4021.2,4019.2,3.0]
[1733531702459,0.8223,4020.9,4019.2,3.0]
[1733531702660,0.8223,4020.9,4019.0,3.59874613]
[1733531702966,0.8223,4020.9,4019.1,0.35807016]
[1733531703688,0.8223,4020.5,4018.8,0.02487342]
[1733531704051,0.8223,4020.5,4018.4,0.3462872]
[1733531704664,0.8223,4020.5,4018.5,0.32141236]
[1733531704870,0.8223,4020.5,4018.6,0.02487485]
[1733531705401,0.8223,4020.5,4018.7,0.32141236]
[1733531705585,0.8223,4020.5,4018.8,0.02487486]
[1733531706399,0.8223,4020.5,4019.1,0.55]
[1733531706607,0.8223,4020.5,4019.2,0.0248705]
[1733531708702,0.8223,4020.5,4019.2,0.2729705]
[1733531711488,0.8223,4020.5,4019.2,0.2481]
[1733531712365,0.8223,4020.5,4019.3,0.024874]
[1733531712571,0.8223,4020.5,4019.3,0.272974]
[1733531712879,0.8223,4020.5,4019.3,0.2481]
[1733531713300,0.7704,4020.4,4019.3,0.2481]
[1733531713509,0.7704,4020.4,4018.4,0.2481]
[1733531713804,0.7704,4020.1,4018.4,0.2481]
[1733531714100,0.7704,4020.1,4018.5,0.02487515]
[1733531715568,0.7704,4020.1,4018.4,0.2481]
[1733531717173,0.7704,4020.1,4018.5,0.02487657]
[1733531717508,0.7704,4020.1,4018.5,0.02487655]
[1733531719209,0.7704,4020.1,4018.4,0.2481]
[1733531720377,0.7704,4020.1,4017.3,0.2481]
[1733531720378,0.7704,4018.8,4017.3,0.2481]
[1733531720582,0.7704,4018.8,4017.3,0.27298389]
[1733531720775,0.7704,4018.8,4017.9,0.2481]
[1733531721303,0.7704,4018.8,4018.0,0.02488391]
[1733531721904,0.7704,4018.8,4017.9,0.2481]
[1733531722706,0.7704,4018.8,4018.0,0.02488206]
[1733531722907,0.7704,4018.8,4017.9,0.2481]
[1733531723666,0.7704,4018.8,4017.8,0.994722]
[1733531724109,2.3116481,4018.2,4016.9,0.02488215]
[1733531724315,0.7876,4017.0,4015.3,0.7515]
[1733531724607,0.7876,4017.0,4015.8,0.99511]
[1733531724972,0.7876,4017.0,4015.8,1.24321]
[1733531725318,0.7876,4017.0,4015.2,0.02489355]
[1733531725470,0.7876,4017.0,4015.4,0.995224]
[1733531725818,2.3116481,4017.6,4014.6,0.7515]
[1733531725819,0.7876,4016.6,4014.6,0.7515]
[1733531725972,0.30992481,4016.9,4014.4,0.02489792]
[1733531725973,0.7876,4016.2,4014.4,0.02489792]
[1733531726323,0.7876,4016.2,4014.2,0.7515]
[1733531726324,0.7876,4016.2,4014.7,0.995359]
[1733531726670,0.7876,4016.2,4014.8,0.2481]
[1733531727314,0.7876,4016.2,4014.9,0.02490037]
[1733531727612,0.7876,4016.2,4014.9,0.02490038]
[1733531727825,0.7876,4016.2,4014.8,0.2481]
[1733531727983,0.7876,4016.2,4014.9,0.0249004]
[1733531728183,0.7876,4016.2,4015.2,0.7981]
[1733531728386,0.7876,4016.2,4015.3,0.02489714]
[1733531728584,0.7876,4016.2,4015.5,0.55]
[1733531728914,0.7876,4016.2,4015.6,0.02489577]
[1733531729676,0.7867,4017.5,4015.4,0.55]
[1733531729876,0.7867,4017.5,4015.5,0.02489227]
[1733531730575,0.7867,4016.3,4014.4,0.16491653]
[1733531730775,0.7867,4016.3,4014.5,0.02490128]
[1733531730978,0.7867,4016.3,4014.8,0.02490128]
[1733531731175,0.7867,4016.3,4014.8,0.80650128]
[1733531732314,0.7867,4016.3,4014.9,0.55]
[1733531732517,0.7867,4016.3,4015.0,0.02489752]
[1733531733301,0.7867,4016.3,4015.2,0.55]
[1733531733614,0.7867,4017.1,4015.3,0.0248954]
[1733531737150,0.7867,4017.1,4014.8,0.8816]
[1733531737151,0.7867,4017.1,4014.8,3.7816]
[1733531737445,0.7867,4016.9,4015.2,0.02489334]
[1733531737952,0.7867,4016.9,4014.9,0.02489679]
[1733531738353,0.7867,4016.9,4014.9,0.55]
[1733531738554,0.7867,4016.9,4015.0,0.2481]
[1733531738705,0.7867,4016.9,4014.8,3.7816]
[1733531738706,0.7867,4016.8,4015.2,0.2481]
[1733531738912,0.7867,4016.7,4015.2,0.2481]
[1733531739649,0.7867,4016.7,4014.8,0.2481]
[1733531740255,2.3116481,4016.4,4014.8,0.2481]
[1733531740554,0.7867,4016.3,4014.8,0.2481]
[1733531740735,0.7867,4016.1,4014.8,0.2481]
[1733531741844,0.7867,4016.1,4015.0,0.2481]
[1733531743363,0.30983481,4016.2,4014.5,0.2481]
[1733531743364,0.7867,4015.9,4014.5,0.2481]
[1733531743533,0.7867,4015.9,4014.2,0.97119405]
[1733531743924,0.7867,4015.9,4014.3,0.02490676]
[1733531744128,0.7867,4015.9,4014.4,2.3116481]
[1733531744347,0.7867,4015.9,4014.5,0.02490316]
[1733531744532,0.7867,4015.9,4014.5,3.57490316]
[1733531744745,0.7867,4015.9,4014.9,0.55]
[1733531745066,0.7867,4015.9,4014.4,0.2481]
[1733531745067,0.7867,4015.9,4015.6,2.3116481]
[1733531745368,0.7867,4017.1,4015.7,3.57489681]
[1733531745927,0.7867,4017.1,4016.2,2.3116481]
[1733531746238,0.12942873,4019.9,4015.3,0.7816]
[1733531746239,0.7867,4017.5,4016.7,3.55]
[1733531746674,0.7867,4017.5,4016.6,3.55]
[1733531748064,0.7867,4017.5,4016.4,0.55]
[1733531748450,0.7867,4017.5,4016.1,3.0]
[1733531748657,0.7867,4017.5,4016.2,0.55]
[1733531750068,0.7867,4017.5,4016.3,0.02489268]
[1733531753458,0.7867,4017.5,4016.1,3.55]
[1733531753710,0.7867,4017.5,4016.3,0.7981]
[1733531753873,0.7867,4017.5,4016.4,0.02489273]
[1733531754352,0.7867,4017.5,4016.4,0.82299273]
[1733531754734,0.7867,4017.5,4016.4,0.27299273]
[1733531755359,0.7867,4017.5,4016.5,0.55]
[1733531755746,0.7867,4017.5,4016.4,0.2481]
[1733531755945,0.7867,4017.5,4016.5,0.57489276]
[1733531757065,0.7867,4017.5,4016.5,0.02489276]
[1733531757369,0.7867,4017.5,4016.5,0.57489276]
[1733531757982,0.7867,4017.5,4016.6,0.02489108]
[1733531758278,0.7867,4017.5,4016.5,0.55]
[1733531759175,0.7867,4017.5,4016.6,0.02489109]
[1733531759543,0.7867,4017.5,4016.5,0.55]
[1733531759740,0.7867,4017.5,4016.6,0.0248911]
[1733531760280,0.7867,4017.5,4016.5,0.55]
[1733531760492,0.7867,4017.5,4015.6,3.0]
[1733531760493,0.7867,4017.5,4015.6,0.2481]
[1733531761857,0.7867,4017.5,4015.7,0.7981]
[1733531763280,0.7867,4017.5,4015.1,3.2481]
[1733531763492,0.7867,4017.5,4015.3,0.2481]
[1733531763786,0.7867,4017.5,4015.3,3.27299729]
[1733531764089,0.7867,4017.5,4015.3,3.2481]
[1733531764553,0.7867,4017.5,4015.7,0.2481]
[1733531764756,0.7867,4017.5,4015.9,0.55]
[1733531766215,0.7867,4017.5,4016.2,0.2481]
[1733531766387,0.7867,4017.5,4016.4,0.55]
[1733531767891,0.7867,4017.5,4016.2,0.2481]
[1733531768043,0.7867,4017.5,4016.3,0.55]
[1733531768346,0.7867,4017.5,4016.4,0.55]
[1733531769195,0.7867,4017.5,4016.3,0.7981]
[1733531769789,0.7867,4017.5,4016.7,0.7981]
[1733531769943,0.7867,4017.5,4016.9,0.7981]
[1733531770143,0.7867,4017.5,4017.2,3.0]
[1733531770389,0.7867,4017.5,4017.3,0.55]
[1733531770597,0.7867,4017.5,4017.4,0.7981]
[1733531773488,0.7502,4018.9,4017.5,0.55]
[1733531774372,0.7502,4018.9,4017.6,3.02488738]
[1733531774555,0.7502,4018.9,4017.8,3.0]
[1733531774757,0.7502,4018.9,4017.9,0.55]
[1733531775295,0.7502,4018.9,4017.8,3.55]
[1733531775854,0.7502,4018.9,4017.8,0.55]
[1733531776367,0.7502,4018.9,4017.9,0.02488695]
[1733531776879,0.7502,4018.9,4017.9,0.55]
[1733531778176,0.7502,4018.9,4017.8,0.55]
[1733531779998,0.7502,4018.9,4017.8,3.55]
[1733531780717,0.7502,4018.9,4017.6,0.55]
[1733531780865,0.7502,4018.9,4017.8,0.02488721]
[1733531781066,0.7502,4018.9,4017.7,0.55]
[1733531781267,0.7502,4018.9,4017.7,3.55]
[1733531781497,0.7502,4018.9,4017.7,0.55]
[1733531781702,0.7502,4018.9,4017.8,0.02488436]
[1733531781901,0.7502,4018.9,4017.9,0.55]
[1733531782202,0.7502,4018.9,4017.9,6.63194173]
[1733531782366,0.7502,4018.9,4017.9,3.55]
[1733531782809,0.7502,4018.9,4017.9,0.55]
[1733531783309,0.7502,4018.9,4018.0,0.02488254]
[1733531783475,0.7502,4018.9,4018.1,0.55]
[1733531783666,0.7502,4018.9,4018.0,3.0]
[1733531783868,0.7502,4018.9,4018.1,0.55]
[1733531784303,0.7502,4018.9,4018.0,0.55]
[1733531784507,0.7502,4018.9,4018.0,0.57488233]
[1733531784972,0.7502,4018.9,4018.0,2.89126671]
[1733531785182,0.7502,4020.3,4018.3,0.7981]
[1733531785381,0.7502,4020.3,4018.4,2.34126437]
[1733531785619,0.7502,4020.3,4018.5,4.3712]
[1733531785819,0.7502,4020.3,4018.6,0.02487913]
[1733531786335,0.7502,4020.3,4018.5,4.6193]
[1733531786493,0.47248202,4020.3,4018.5,3.55]
[1733531786692,0.7502,4019.9,4018.2,0.55]
[1733531786901,0.7502,4019.9,4018.1,0.55]
[1733531787211,0.7502,4019.9,4017.7,3.08194173]
[1733531787393,0.7787,4019.7,4017.5,3.08194173]
[1733531787616,0.7787,4019.5,4017.3,3.33004173]
[1733531787821,0.7787,4019.5,4017.2,2.31638438]
[1733531787822,0.7787,4019.1,4017.2,3.08194173]
[1733531788036,0.7787,4019.1,4016.8,5.91198307]
[1733531788037,0.8787,4019.1,4017.0,3.08194173]
[1733531788339,0.8787,4019.1,4016.8,5.39832611]
[1733531788502,0.8787,4019.1,4016.8,3.08194173]
[1733531788709,0.7787,4018.7,4016.8,3.08194173]
[1733531788903,0.7787,4018.6,4016.7,3.33004173]
[1733531789334,0.7787,4018.6,4016.8,3.0]
[1733531789541,0.7787,4018.6,4016.8,6.08409558]
[1733531790043,0.7787,4018.6,4017.0,3.55]
[1733531790249,0.7787,4018.6,4017.0,0.55]
[1733531790401,0.7787,4018.4,4017.1,0.55]
[1733531790603,0.7787,4018.4,4017.0,3.0]
[1733531791012,0.7787,4018.4,4017.2,3.0]
[1733531791218,0.7787,4018.4,4017.0,6.08409558]
[1733531791847,0.7787,4018.4,4017.1,0.55]
[1733531793944,0.7787,4018.4,4017.0,0.55]
[1733531794110,0.7787,4018.4,4016.9,0.55]
[1733531794311,0.7787,4018.4,4016.8,3.55]
[1733531794535,0.7787,4018.3,4016.4,3.09029572]
[1733531794742,0.7787,4018.1,4016.4,3.09029572]
[1733531794903,0.7787,4018.1,4016.5,0.02489151]
[1733531795112,0.7787,4018.1,4016.5,3.11518723]
[1733531795454,0.7787,4018.1,4016.4,5.4066801]
[1733531795810,0.7787,4018.1,4016.5,3.0]
[1733531796313,1.08820844,4018.1,4016.5,0.55]
[1733531796633,0.7787,4018.0,4016.5,0.55]
[1733531797242,0.7787,4018.0,4016.4,0.55]
[1733531802824,0.7787,4018.0,4016.3,0.55]
[1733531803010,2.31638438,4018.0,4016.3,0.55]
[1733531803216,0.7787,4017.8,4016.2,0.55]
[1733531803416,0.7787,4017.8,4016.1,0.55]
[1733531803960,0.7787,4017.8,4015.5,3.08738438]
[1733531803961,2.31638438,4017.6,4015.7,3.08935083]
[1733531804128,2.31638438,4017.6,4015.5,2.31638438]
[1733531804129,0.7787,4017.5,4015.6,3.08935083]
[1733531804467,0.7787,4017.3,4015.4,3.08935083]
[1733531804618,0.30950844,4017.4,4015.1,2.31638438]
[1733531804619,0.7787,4017.1,4015.1,3.08935083]
[1733531804824,0.7787,4017.1,4015.3,3.08935083]
[1733531805318,0.7787,4017.1,4015.2,3.08935083]
[1733531805760,0.7787,4017.0,4015.2,3.0]
[1733531805933,0.7787,4016.8,4015.2,3.0]
[1733531806512,0.7787,4016.8,4014.8,2.31638438]
[1733531806513,0.7787,4016.7,4014.8,3.08935083]
[1733531806812,0.7787,4016.7,4014.8,0.55]
[1733531807058,0.7787,4016.7,4014.9,3.08935083]
[1733531807232,0.7787,4016.7,4014.7,3.08935083]
[1733531807427,0.7734,4016.5,4014.6,3.08935083]
[1733531807710,0.7734,4016.5,4014.4,3.08738438]
[1733531807711,2.31638438,4016.0,4014.3,3.08935083]
[1733531807917,0.7734,4015.9,4014.2,1.41668105]
[1733531808655,0.7734,4015.9,4014.2,0.995487]
[1733531810669,2.31638438,4015.2,4014.2,0.995487]
[1733531810968,0.7734,4015.1,4014.2,0.995487]
[1733531811568,0.7734,4015.1,4013.1,0.55]
[1733531811873,2.31638438,4014.8,4012.6,3.08922437]
[1733531812032,0.7734,4014.7,4013.2,0.7609]
[1733531813903,0.7734,4014.7,4013.3,0.55]
[1733531814064,0.7734,4014.5,4013.3,0.55]
[1733531815863,0.7734,4014.3,4013.2,0.72196972]
[1733531816473,0.7734,4014.3,4012.3,5.31638438]
[1733531816647,0.7734,4014.3,4012.4,3.55]
[1733531816966,0.7734,4014.3,4012.6,0.55]
[1733531817170,0.7734,4014.1,4012.6,0.55]
[1733531817531,2.31638438,4013.6,4012.5,0.996033]
[1733531817743,0.7734,4013.5,4012.5,0.996033]
[1733531820457,0.7734,4013.5,4011.4,1.25142412]
[1733531820458,0.7734,4013.5,4011.6,2.31638438]
[1733531820783,0.7734,4013.5,4011.7,3.30427426]
[1733531821144,0.7734,4013.5,4011.8,0.02492273]
[1733531821348,0.7734,4013.5,4012.4,5.31638438]
[1733531821557,0.7734,4013.5,4012.5,0.32919283]
[1733531821886,0.7734,4013.5,4012.5,3.61308017]
[1733531822295,0.7734,4013.9,4012.8,2.31638438]
[1733531822579,0.7734,4015.0,4012.9,0.30427426]
[1733531822797,0.8166,4014.9,4013.0,0.02491284]
[1733531822948,0.8166,4014.9,4013.1,1.07777426]
[1733531823285,0.8166,4014.9,4013.2,5.31638438]
[1733531823492,0.8166,4014.9,4013.2,5.62065864]
[1733531823808,0.8166,4014.9,4013.3,3.2481]
[1733531825547,0.8166,4014.9,4013.4,0.02491137]
[1733531825748,0.8166,4014.9,4013.6,0.2481]
[1733531828787,0.8166,4014.9,4014.0,2.31638438]
[1733531828991,0.8166,4014.9,4014.4,2.31638438]
[1733531829400,0.7905,4015.3,4014.4,2.31638438]
[1733531833371,2.31638438,4016.7,4014.4,2.31638438]
[1733531833372,0.7905,4016.7,4014.8,5.31638438]
[1733531833586,0.7905,4016.6,4014.8,5.31638438]
[1733531833952,0.7905,4016.6,4014.9,0.02490116]
[1733531834492,0.7905,4016.6,4015.2,2.31638438]
[1733531837807,0.7905,4016.6,4015.6,2.31638438]
[1733531838360,0.7905,4016.6,4015.6,2.34128167]
[1733531839298,0.7905,4016.6,4015.6,2.31638438]
[1733531841077,0.7905,4016.6,4015.2,2.31638438]
[1733531843128,0.7905,4016.6,4014.9,0.7633]
[1733531843276,0.7905,4016.6,4014.8,2.31638438]
[1733531844885,0.7905,4016.6,4014.4,2.31638438]
[1733531846128,0.7905,4016.4,4014.4,2.31638438]
[1733531848255,0.7905,4016.4,4014.8,2.31638438]
[1733531848823,0.7905,4016.4,4014.9,0.0249011]
[1733531849135,0.7905,4016.4,4015.2,2.31638438]
[1733531849349,0.7905,4016.4,4015.3,0.0249011]
[1733531849636,0.7905,4016.4,4015.2,2.31638438]
[1733531851116,0.7905,4016.4,4014.8,5.31638438]
[1733531851648,0.7905,4016.4,4014.7,0.55]
[1733531851846,0.7905,4016.4,4014.9,2.31638438]
[1733531853715,0.7905,4016.4,4015.0,0.02490337]
[1733531854154,0.7905,4016.4,4015.3,2.31638438]
[1733531854361,0.7905,4016.4,4015.7,2.31638438]
[1733531855026,0.7905,4016.4,4015.7,2.34128217]
[1733531855646,0.7905,4016.4,4015.7,2.31638438]
[1733531855852,0.7905,4016.4,4015.7,2.34128164]
[1733531856721,0.7905,4016.4,4015.7,2.31638438]
[1733531857857,0.7905,4016.4,4015.5,0.55]
[1733531858625,0.7905,4016.4,4015.6,0.2481]
[1733531859752,0.7905,4016.4,4014.9,0.2481]
[1733531859941,0.7905,4016.4,4015.1,3.2481]
[1733531860138,0.7905,4016.4,4015.2,0.02490116]
[1733531860653,0.7905,4016.4,4015.1,3.2481]
[1733531863659,0.7905,4016.4,4015.1,3.2730012]
[1733531864769,0.7905,4016.4,4015.1,3.2481]
[1733531868183,0.7905,4016.4,4014.7,3.2481]
[1733531870137,0.7905,4016.4,4014.7,6.85672337]
[1733531870355,0.7905,4016.4,4014.7,3.2481]
[1733531871179,0.7905,4016.4,4014.7,6.85672337]
[1733531871758,0.7905,4016.4,4014.7,6.86748212]
[1733531872391,0.7905,4016.4,4014.9,3.2481]
[1733531872756,0.7905,4016.4,4014.9,0.2481]
[1733531873489,0.7905,4016.4,4014.8,0.2481]
[1733531874389,0.7905,4016.4,4014.6,0.2481]
[1733531874696,0.1,4017.3,4014.1,4.27539513]
[1733531874697,0.8219,4016.1,4014.4,3.61938212]
[1733531874861,0.8219,4015.9,4014.2,3.86748212]
[1733531875067,0.8219,4015.8,4014.2,0.2481]
[1733531876096,0.8219,4015.6,4014.0,0.2481]
[1733531876954,0.8219,4015.6,4013.8,0.2481]
[1733531877160,0.8219,4015.4,4013.8,3.2481]
[1733531878362,0.8219,4015.4,4013.9,0.2481]
[1733531879472,0.8219,4015.4,4013.7,0.2481]
[1733531879977,0.8219,4015.4,4013.9,6.87390851]
[1733531880171,0.8219,4015.4,4013.9,3.2481]
[1733531880400,0.8219,4015.4,4013.9,3.53930079]
[1733531880607,0.8219,4015.4,4014.1,0.2481]
[1733531880792,0.8219,4015.4,4014.1,6.86872098]
[1733531881109,0.8219,4015.4,4014.1,3.2481]
[1733531881700,0.8219,4015.4,4014.1,3.27300728]
[1733531881898,0.8219,4015.4,4014.1,6.86872098]
[1733531882783,0.8219,4015.4,4014.3,3.2481]
[1733531883598,0.8219,4015.4,4014.2,0.2481]
[1733531883979,0.8219,4015.4,4014.3,0.02490731]
[1733531884173,0.8219,4015.4,4014.4,0.2481]
[1733531884527,0.8219,4015.4,4014.3,3.02490593]
[1733531884528,0.8219,4015.4,4014.7,3.2481]
[1733531884824,0.8219,4015.4,4014.7,0.2481]
[1733531886495,0.8219,4015.4,4014.0,0.2481]
[1733531892584,0.8219,4015.4,4013.8,3.2481]
[1733531892986,0.8219,4015.4,4013.8,0.2481]
[1733531893718,0.8219,4015.4,4013.9,0.2481]
[1733531894696,0.8219,4015.4,4013.7,3.0]
[1733531894697,0.8219,4015.4,4013.8,0.2481]
[1733531895688,0.8219,4015.4,4013.9,0.2481]
[1733531896834,0.8219,4015.4,4013.6,0.2481]
[1733531897698,0.7592,4015.2,4013.7,0.2481]
[1733531898595,0.7592,4015.2,4013.8,0.02491063]
[1733531898795,0.7592,4015.2,4013.9,0.2481]
[1733531898994,0.7592,4015.2,4013.9,3.2481]
[1733531900114,0.7592,4015.2,4013.9,6.86301573]
[1733531900310,0.7592,4015.2,4014.3,3.2481]
[1733531900512,0.7592,4015.2,4014.5,0.2481]
[1733531900839,0.7592,4015.2,4014.5,3.2481]
[1733531902098,0.7592,4015.2,4014.5,3.85929036]
[1733531902338,0.7592,4015.2,4014.7,0.2481]
[1733531903642,0.0953211,4015.2,4014.8,0.02490509]
[1733531903842,2.31638438,4016.7,4014.7,3.85929036]
[1733531904023,2.31638438,4016.7,4014.6,5.31638438]
[1733531904024,2.31638438,4016.7,4014.9,0.2481]
[1733531904543,2.31638438,4016.7,4015.1,0.2481]
[1733531904843,2.31638438,4017.5,4015.1,0.2481]
[1733531905044,0.23163844,4017.4,4015.3,0.2481]
[1733531905209,2.31638438,4017.9,4015.5,0.2481]
[1733531905398,2.31638438,4017.9,4015.9,3.2481]
[1733531906598,0.7835,4017.8,4015.9,3.2481]
[1733531908759,0.7835,4017.8,4015.9,3.0]
[1733531908945,0.7835,4017.8,4015.8,5.31638438]
[1733531909720,0.7835,4017.8,4015.8,8.9256494]
[1733531910561,0.7835,4017.8,4015.8,5.31638438]
[1733531911255,0.7835,4017.8,4015.8,8.9256494]
[1733531911463,0.7835,4017.8,4015.8,5.31638438]
[1733531912061,0.55,4017.6,4015.7,3.0]
[1733531912261,0.8006,4017.4,4015.3,3.60926502]
[1733531912427,0.8006,4017.4,4015.0,2.31638438]
[1733531912428,0.8006,4017.0,4015.1,3.60926502]
[1733531912759,0.8006,4017.0,4015.0,5.92322463]
[1733531913164,0.8006,4016.8,4015.0,3.60684025]
[1733531913459,0.8006,4016.6,4014.7,3.60684025]
[1733531913660,0.8006,4016.6,4014.6,5.92322463]
[1733531913864,0.8006,4016.6,4014.7,3.60684025]
[1733531914465,0.8006,4016.6,4014.7,6.60684025]
[1733531914758,0.8006,4016.6,4015.2,3.0]
[1733531915387,0.8006,4016.6,4015.1,3.0]
[1733531915680,0.949166,4016.6,4015.1,6.09268735]
[1733531916446,0.949166,4016.6,4015.1,3.0]
[1733531916751,0.949166,4016.6,4015.1,6.09268735]
[1733531917574,0.949166,4016.6,4015.1,3.0]
[1733531917963,0.949166,4016.6,4015.1,6.0923823]
[1733531918755,0.949166,4016.6,4015.2,0.2481]
[1733531920994,0.949166,4016.6,4015.3,0.2481]
[1733531921966,0.8006,4016.4,4015.1,0.2481]
[1733531922283,0.8006,4016.4,4015.1,3.2481]
[1733531922890,0.8006,4016.4,4015.1,0.2481]
[1733531927292,0.8006,4016.4,4015.1,3.2481]
[1733531927856,0.8006,4016.4,4015.1,0.2481]
[1733531928056,0.9368721,4016.3,4015.1,0.2481]
[1733531928599,0.8093,4016.2,4015.0,0.2481]
[1733531928765,2.31638438,4015.9,4014.7,3.34178755]
[1733531928950,0.8093,4015.8,4014.5,3.09368755]
[1733531929154,0.1275721,4016.3,4014.2,3.09368755]
[1733531929155,0.8093,4015.4,4014.2,3.09368755]
[1733531929378,0.8093,4015.3,4014.1,3.09368755]
[1733531929754,0.8093,4015.3,4014.2,0.2481]
[1733531930277,0.8093,4015.3,4014.2,3.2481]
[1733531930503,0.8093,4015.3,4014.2,0.2481]
[1733531930808,0.8093,4015.3,4014.1,0.2481]
[1733531931815,0.8093,4015.2,4014.1,0.2481]
[1733531932210,0.8093,4015.2,4013.9,3.2481]
[1733531932881,0.8093,4015.2,4013.9,0.2481]
[1733531933276,0.8093,4015.2,4014.1,0.2481]
[1733531934221,0.8093,4015.2,4014.2,0.7981]
[1733531934516,0.8093,4015.2,4014.6,3.55]
[1733531934687,0.8093,4015.2,4014.8,6.64368755]
[1733531935027,0.8093,4015.2,4014.9,3.2481]
[1733531935187,0.2,4017.2,4014.9,3.2481]
[1733531935188,0.8093,4016.4,4015.0,0.82300602]
[1733531935512,0.8093,4016.4,4015.2,0.55]
[1733531938785,0.8093,4016.4,4015.3,0.2481]
[1733531940012,0.8093,4016.4,4015.2,0.55]
[1733531940186,0.8208,4016.3,4015.1,0.55]
[1733531941222,0.8208,4016.3,4015.2,3.0922515]
[1733531941408,0.8208,4016.3,4015.3,3.0]
[1733531941603,0.8208,4016.3,4015.4,3.0]
[1733531942317,0.8208,4016.3,4015.6,3.0922515]
[1733531942626,0.8208,4017.6,4015.9,0.2481]
[1733531942929,0.8208,4017.4,4016.0,3.55]
[1733531943232,0.8208,4017.4,4016.0,0.7981]
[1733531943582,0.8208,4017.4,4015.9,3.0]
[1733531943809,0.05,4015.9,4015.7,3.0]
[1733531944090,0.05,4015.9,4015.5,3.0]
[1733531944401,0.05,4015.9,4015.4,3.0]
[1733531944735,0.05,4015.9,4015.4,6.0922515]
[1733531944915,0.05,4015.9,4015.5,6.09560879]
[1733531945334,0.05,4015.9,4015.5,3.0]
[1733531945550,0.8208,4015.8,4015.2,3.09560879]
[1733531946412,0.8208,4015.8,4015.1,3.09560879]
[1733531946637,0.8208,4015.8,4014.8,3.61154359]
[1733531946638,0.8208,4015.8,4015.3,3.0]
[1733531947105,0.8208,4015.8,4015.2,3.0]
[1733531947306,0.8208,4015.8,4015.1,3.0]
[1733531948303,0.8208,4015.8,4015.1,6.09560879]
[1733531949614,0.8208,4015.8,4015.1,3.0]
[1733531949802,0.8208,4015.8,4015.1,6.0949792]
[1733531950816,0.8208,4015.8,4015.3,3.0949792]
[1733531951150,0.8208,4015.8,4015.3,3.0]
[1733531951448,0.8208,4015.8,4015.2,3.0]
[1733531951747,0.05,4015.3,4015.2,3.0]
[1733531952413,0.05,4015.3,4015.2,6.0949792]
[1733531952623,0.05,4015.3,4015.2,0.754]
[1733531953222,0.05,4015.3,4015.2,4.304]
[1733531953644,0.00734643,4015.3,4015.2,4.5525]
[1733531954332,0.00734643,4015.3,4015.2,13.86216651]
[1733531954511,0.00108971,4015.3,4015.2,18.93416454]
[1733531954712,0.00018709,4015.3,4015.2,18.93416454]
[1733531955348,0.00018709,4015.3,4015.2,13.83726454]
[1733531955561,0.8057,4017.1,4016.5,0.7985]
[1733531955756,0.8057,4017.1,4016.5,3.89189077]
[1733531956053,0.8057,4018.4,4016.6,6.09339077]